Cogmind - Beta 14 @@@ ROGUE MODE // 2024.11.24 @ 11:34:21 Player: Fangrelle Result: Destroyed by ZV-HCQ(R) with Subdweller Beam Cannon Performance ------------- Evolutions (0) 0 Regions Visited (3) 600 Robots Destroyed (37) 185 Value Destroyed (924) 924 Prototype IDs (0) 0 Alien Tech Used (0) 0 Bonus (38) 38 TOTAL SCORE: 1747 Bonus ------- High Alert Combat Kills 8 Follower Combat Kills 30 Cogmind --------- Core Integrity 0/250 Matter 290/300 Energy 265/265 System Corruption 0% Temperature Cool (9) Movement Core (200) Ox3 Location -10/Subcaves Parts ------- > --- POWER (1) -------- Improved Ion Engine > --- PROPULSION (2) --- (None) > --- UTILITY (2) ------ (None) > --- WEAPON (2) ------- Makeshift Sword Makeshift Sword > --- INVENTORY (5) ---- Autobeam Autobeam Heavy Battle Rifle Peak State ------------ > --- POWER ------------ Light Angular Momentum Engine > --- PROPULSION ------- Spiked Treads Carbon-fiber Leg > --- UTILITY ---------- Medium Armor Plating Medium Armor Plating > --- WEAPON ----------- EM Pulse Gun Makeshift Sword > --- INVENTORY -------- Autobeam Autobeam Battle Rifle Barrage Gun Datajack [Rating: 20] Favorites ----------- Power Improved Ion Engine Engine Improved Ion Engine Propulsion Spiked Treads Treads Spiked Treads Leg Improved Aluminum Leg Utility Medium Armor Plating Storage Medium Storage Unit Protection Medium Armor Plating Weapon EM Pulse Gun Energy Gun EM Pulse Gun Ballistic Gun Battle Rifle Ballistic Cannon Battle Cannon Launcher Grenade Launcher Slashing Weapon Makeshift Sword Special Melee Weapon Datajack Build | -11 -10 -10 -10 ------- Run | Yrd Mat Min Sub Slots Evolved . | . . . . Power . | . . . . Propulsion . | . . . . Utility . | . . . . Weapon . | . . . . Parts Attached 52 | . 21 . 31 Power 4 | . 1 . 3 Engine 4 | . 1 . 3 Core . | . . . . Reactor . | . . . . Propulsion 7 | . 5 . 2 Treads 3 | . 2 . 1 Leg 4 | . 3 . 1 Wheel . | . . . . Hover . | . . . . Flight . | . . . . Utility 13 | . 3 . 10 Device . | . . . . Storage 2 | . 1 . 1 Processor . | . . . . Hackware . | . . . . Protection 11 | . 2 . 9 Artifact . | . . . . Weapon 28 | . 12 . 16 Energy Gun 12 | . 8 . 4 Energy Cannon . | . . . . Ballistic Gun 7 | . . . 7 Ballistic Cannon 1 | . . . 1 Launcher 4 | . 4 . . Special Weapon . | . . . . Impact Weapon . | . . . . Slashing Weapon 3 | . . . 3 Piercing Weapon . | . . . . Special Melee Weapon 1 | . . . 1 Unidentified Prototypes . | . . . . Parts Lost 12 | . 2 . 10 Power 1 | . . . 1 Propulsion 2 | . . . 2 Utility 4 | . . . 4 Weapon 5 | . 2 . 3 Highest Loss Streak 3 | . 1 . 3 To Critical Strikes . | . . . . Average Slot Usage (%) 91 | . 98 100 86 Engine 13 | . 14 14 13 Treads 10 | . 12 . 12 Leg 15 | . 15 28 12 Storage 7 | . 14 14 4 Protection 14 | . 13 14 14 Energy Gun 10 | . 9 28 7 Ballistic Gun 12 | . 13 . 15 Ballistic Cannon 2 | . . . 3 Peak Build Rating 20 | 6 12 12 20 Average Rating 14 | 6 9 12 15 On Entrance 9 | 6 6 12 12 Naked Turns . | . . . . Heaviest Build 32 | 13 28 28 32 Greatest Support 40 | 20 40 26 26 Greatest Overweight (x) 9 | . 2 1 9 Average Overweight (x) . | . . 1 1 Largest Inventory Capacity 10 | 8 10 10 10 Average Capacity 7 | 8 9 10 6 Most Carried 10 | 6 10 10 10 Average Carried 6 | 6 7 10 5 Final Capacity 10 | 8 10 10 5 Final Carried 10 | 6 10 10 3 Class Distribution -------------------- 88% | Mutant 11% | Derelict-Mutant Dominant Class ---------------- Mutant | -10/Materials Mutant | -10/Mines Mutant | -10/Subcaves Resources | -11 -10 -10 -10 ----------- Run | Yrd Mat Min Sub Matter Collected 1097 | 200 285 48 564 Remotely . | . . . . Salvage Created 1187 | . 774 . 413 Parts 73 | . 49 . 24 Haulers Intercepted 1 | . 1 . . Recyclers Shooed 1 | . 1 . . Parts Field Recycled . | . . . . Retrieved Matter . | . . . . Parts Self-Destructed 16 | . . . 16 Prevented 1 | . . . 1 Kills | -11 -10 -10 -10 ------- Run | Yrd Mat Min Sub Combat Hostiles Destroyed 26 | . 16 . 10 Melee 1 | . . . 1 Guns 17 | . 8 . 9 AOE 8 | . 8 . . Classes Destroyed 10 | . 8 . 2 Worker 1 | . 1 . . Builder 2 | . 2 . . Hauler 1 | . 1 . . Recycler 2 | . 2 . . Operator 2 | . 2 . . Turret 2 | . . . 2 Watcher 1 | . 1 . . Swarmer 7 | . 3 . 4 Grunt 13 | . 13 . . Subdweller 6 | . . . 6 Best Kill Streak 5 | . 5 . 2 Combat Bots Only 4 | . 4 . 2 Max Kills in Single Turn 3 | . 3 . 1 Gunslinging . | . . . . Exploded 2 | . 2 . . Melee 1 | . . . 1 Uniques/NPCs Destroyed . | . . . . Combat | -11 -10 -10 -10 -------- Run | Yrd Mat Min Sub Hostile Shots Fired 256 | . 60 . 196 Missed 89 | . 23 . 66 Damage Taken 2412 | . 482 . 1930 Core 273 | . 91 . 182 Absorbed by Shields . | . . . . Redirected to Shielding 1 | . 1 . . Core Remaining (%) 100 | 100 . . . Volleys Fired 108 | . 57 . 51 Largest 2 | . 2 . 2 Hottest 80 | . 70 . 80 Shots Fired 193 | . 93 . 100 Gun 185 | . 85 . 100 Cannon . | . . . . Launcher 8 | . 8 . . Special . | . . . . Kinetic 110 | . 56 . 54 Thermal 29 | . 29 . . Explosive 8 | . 8 . . Electromagnetic 46 | . . . 46 Robot Hit Streak 18 | . 8 . 18 Robot Miss Streak 5 | . 5 . 5 Penetration Max . | . . . . Secondary Targets 2 | . 1 . 1 Max Gunslinging Chain 1 | . 1 . 1 Shots Hit Robots 140 | . 56 . 84 Core Hits 57 | . 37 . 20 Critical Kills 1 | . . . 1 Critical Parts Destroyed . | . . . . Critical Strikes 7 | . 3 . 4 Burn 3 | . 3 . . Destroy 2 | . . . 2 Sever 2 | . . . 2 Melee Attacks 13 | . . . 13 Impact . | . . . . Slashing 13 | . . . 13 Piercing . | . . . . Sneak Attacks . | . . . . Combat Hostiles . | . . . . Follow-up Attacks 2 | . . . 2 Damage Inflicted 2718 | . 1356 . 1362 Guns 1559 | . 655 . 904 Cannons . | . . . . Explosions 769 | . 698 . 71 Melee 387 | . . . 387 Ramming 3 | . 3 . . Kinetic 1016 | . 470 . 546 Thermal 256 | . 185 . 71 Explosive 698 | . 698 . . Electromagnetic 358 | . . . 358 Impact . | . . . . Slashing 387 | . . . 387 Piercing . | . . . . Highest Corruption . | . . . . Average Corruption . | . . . . Corruption Purged . | . . . . Corruption Blocked . | . . . . Overload Shots . | . . . . Overflow Damage . | . . . . Projectiles . | . . . . Explosions . | . . . . Melee . | . . . . Knockbacks . | . . . . Impact . | . . . . Kinetic . | . . . . Secondary . | . . . . Self-Inflicted Damage . | . . . . Shots . | . . . . Rammed . | . . . . Targets Rammed 1 | . 1 . . Kicked 1 | . 1 . . Crushed . | . . . . Highest Temperature 252 | . 252 . 6 Average Temperature 56 | . 57 . 4 Received Heat Transfer 978 | . 273 . 705 Effects 2 | . 2 . . Interference 2 | . 2 . . Siege Activations . | . . . . Robots Corrupted . | . . . . Combat Hostiles . | . . . . Parts Fried 2 | . . . 2 Impact Corruptions . | . . . . Robots Melted . | . . . . Combat Hostiles . | . . . . Parts Melted 3 | . . . 3 Heat Transferred 827 | . 777 . 50 Parts Sabotaged . | . . . . Parts Stolen . | . . . . Parts Stripped . | . . . . Power Chain Reactions 1 | . . . 1 Alert | -11 -10 -10 -10 ------- Run | Yrd Mat Min Sub Peak Influence 403 | . 403 24 . Initial 24 | . . 24 . Average 110 | . 185 10 . Maximum Alert Level 2 | . 2 . . Low Security (%) 73 | 100 53 100 . Level 1 25 | . 45 . . Level 2 . | . 1 . . Level 3 . | . . . . Level 4 . | . . . . Level 5 . | . . . . High Security . | . . . . Max Security . | . . . . Squads Dispatched 3 | . 3 . . Investigation 1 | . 1 . . Extermination . | . . . . Reinforcement 2 | . 2 . . Assault . | . . . . Garrison . | . . . . Intercept . | . . . . Searches Triggered . | . . . . Construction Impeded . | . . . . Haulers Reinforced . | . . . . Active Scanning Responses . | . . . . Cargo Convoy Interrupts . | . . . . Stealth | -11 -10 -10 -10 --------- Run | Yrd Mat Min Sub Distress Signals 1 | . 1 . . Communications Jammed . | . . . . Distress Signals . | . . . . Times Spotted 80 | . 26 . 54 Peak Tracking Total 4 | . 4 . 3 Tactical Retreats 7 | . . . 7 Traps | -11 -10 -10 -10 ------- Run | Yrd Mat Min Sub Traps Triggered . | . . . . Indirectly . | . . . . Trap Hack Attempts 34 | . . . 34 Triggered . | . . . . Disarmed . | . . . . Reprogrammed 3 | . . . 3 Reused . | . . . . Traps Extracted . | . . . . Installed 2 | . . . 2 Triggered . | . . . . Most Traps Carried 1 | . . . 1 Machines | -11 -10 -10 -10 ---------- Run | Yrd Mat Min Sub Machines Disabled 2 | . . . 2 Max in Single Turn 1 | . . . 1 Machines Repaired . | . . . . Machines Dismantled . | . . . . Machines Sabotaged . | . . . . Overloaded Fab Kills . | . . . . Hacking | -11 -10 -10 -10 --------- Run | Yrd Mat Min Sub Machines Accessed 6 | . 6 . . Terminals 4 | . 4 . . Fabricators . | . . . . Repair Stations . | . . . . Recycling Units 2 | . 2 . . Scanalyzers . | . . . . Garrison Access . | . . . . Total Hacks 17 | . 17 . . Successful 9 | . 9 . . Failed 8 | . 8 . . Catastrophic . | . . . . Database Lockouts . | . . . . Manual 15 | . 15 . . Terminals 14 | . 14 . . Fabricators . | . . . . Repair Stations . | . . . . Recycling Units 3 | . 3 . . Scanalyzers . | . . . . Garrison Access . | . . . . Terminal Hacks 2 | . 2 . . Robot Analysis 1 | . 1 . . Branch Access Points 1 | . 1 . . Fabricator Hacks . | . . . . Repair Station Hacks . | . . . . Recycling Unit Hacks 2 | . 2 . . Retrieve Components 2 | . 2 . . Scanalyzer . | . . . . Garrison Access Hacks . | . . . . Unauthorized Hacks 5 | . 5 . . Terminals 4 | . 4 . . Assimilate 1 | . 1 . . Botnet 2 | . 2 . . Skim 1 | . 1 . . Fabricators . | . . . . Repair Stations . | . . . . Recycling Units 1 | . 1 . . Tunnel 1 | . 1 . . Scanalyzers . | . . . . Garrison Access . | . . . . Data Cores Recovered . | . . . . Used . | . . . . Hacking Detections 5 | . 5 . . Full Trace Events . | . . . . Feedback Events . | . . . . Feedback Blocked . | . . . . Robot Schematics Acquired . | . . . . Robots Built . | . . . . Authchips . | . . . . Time . | . . . . Total Robot Build Rating . | . . . . Part Schematics Acquired . | . . . . Parts Built . | . . . . Authchips . | . . . . Time . | . . . . Total Part Build Rating . | . . . . Parts Repaired . | . . . . Time . | . . . . Parts Recycled . | . . . . Recycled Matter . | . . . . Retrieved Matter . | . . . . Retrieved Components 18 | . 18 . . Parts Scanalyzed . | . . . . Part Schematics Acquired . | . . . . Parts Damaged . | . . . . Bothacking | -11 -10 -10 -10 ------------ Run | Yrd Mat Min Sub Used RIF Installer . | . . . . Robots Hacked . | . . . . Non-combat . | . . . . Combat . | . . . . Robot Hacks Applied . | . . . . Relay Couplers Released . | . . . . Fabnet Peak Effective % . | . . . . Robots Rewired . | . . . . Allies Hacked . | . . . . Hacks Repelled . | . . . . Allies | -11 -10 -10 -10 -------- Run | Yrd Mat Min Sub Total Allies 3 | . 1 2 . Largest Group 3 | . 1 3 3 Highest-Rated Group 51 | . 10 51 51 Highest-Rated Ally 31 | . 10 31 31 Total Orders 5 | . 4 . 1 STAY 3 | . 2 . 1 FOLLOW 2 | . 2 . . Ally Attacks 22 | . . . 22 Total Damage 339 | . . . 339 Kills 1 | . . . 1 Allies Corrupted . | . . . . Allies Melted . | . . . . Intel | -11 -10 -10 -10 ------- Run | Yrd Mat Min Sub Robot Analysis Total 1 | . 1 . . Derelict Logs Recovered 1 | . . . 1 Drone Launches . | . . . . Drone Recoveries . | . . . . Exploration | -11 -10 -10 -10 ------------- Run | Yrd Mat Min Sub Turns Passed 6131 | 2 1243 919 3967 Spaces Moved 2180 | 2 597 268 1313 Core 41 | . . . 41 Treads 1483 | . 262 . 1221 Legs 656 | 2 335 268 51 Wheels . | . . . . Hover . | . . . . Flight . | . . . . Fastest Speed 120 | 120 120 190 120 Average Speed 229 | 120 169 190 264 Slowest Speed 500 | 120 260 190 500 Overloaded Moves . | . . . . Propulsion Burnouts . | . . . . Robots Hopped . | . . . . Cave-ins Triggered . | . . . . Exploration Rate (%) 42 | 2 74 68 27 Regions Visited 3 Branch Regions 2 Pre-discovered Areas 1 | . 1 . . Known Exits Taken 1 | . 1 . . Unknown Exits Taken 2 | 1 . 1 . Scrap Searched 11 | . . 1 10 Spaces Dug 7 | . 7 . . Terrain Destroyed 22 | . 22 . . Melee . | . . . . Projectile . | . . . . AOE 22 | . 22 . . Terrain Rammed . | . . . . Walls Destroyed . | . . . . Machines Disabled . | . . . . Actions | -11 -10 -10 -10 --------- Run | Yrd Mat Min Sub Total 3119 | 1 734 678 1706 Wait 658 | . 33 411 214 Move 2177 | 1 596 267 1313 Hop . | . . . . Pick Up 29 | . 12 . 17 Fast Attach 18 | . 7 . 11 Attach 12 | . 2 . 10 Detach . | . . . . Swap 22 | . 12 . 10 Drop 41 | . 14 . 27 Fire 108 | . 57 . 51 Melee 11 | . . . 11 Ram . | . . . . Kick 1 | . 1 . . Crush . | . . . . Escape Stasis . | . . . . Rewire . | . . . . Trap 36 | . . . 36 Miscellaneous 6 | . . . 6 Route ------- -11/Scrapyard -10/Materials (discovered 5 exits: [*Mat x3] / *Min x2) -10/Mines (discovered 4 exits: [*Mat x2] / [*Exi] / [*Sub]) -10/Subcaves (discovered 2 exits: [*Mat] / [*Rec]) History --------- Turn | Location | Event 1 | -11/Scrapyard | Discovered new exit (range 1) 3 | -11/Scrapyard | Entered Materials 262 | -10/Materials | Discovered new exit (range 15) 303 | -10/Materials | Build established: Mutant 434 | -10/Materials | Identified exit to Mines 538 | -10/Materials | Discovered new exit (range 10) 728 | -10/Materials | Discovered new exit (range 16) 1246 | -10/Materials | Entered Mines 1246 | -10/Mines | Accompanied by 1 ally 1319 | -10/Mines | Discovered new exit (range 7) 1556 | -10/Mines | A weapon hastily lodged in a ceiling crevice suddenly fell to the ground 1602 | -10/Mines | Deemed a non-threat by the Exiles lab entrance 1602 | -10/Mines | Discovered new exit (range 5) 1732 | -10/Mines | Discovered new exit (range 9) 2139 | -10/Mines | Discovered new exit (range 3) 2165 | -10/Mines | Entered Subcaves 2165 | -10/Subcaves | Accompanied by 3 allies 2170 | -10/Subcaves | Led the pair of lost Derelicts to an unsafe place 2255 | -10/Subcaves | Core integrity fell below 50% 2302 | -10/Subcaves | Lost 3 parts (1u2w) 3014 | -10/Subcaves | Discovered new exit (range 16) 3114 | -10/Subcaves | Build established: Derelict-Mutant 3163 | -10/Subcaves | Shifting Twisted Machinery released Sub. Laser 3197 | -10/Subcaves | Shifting Twisted Machinery released Barrage Gun 3349 | -10/Subcaves | Discovered new exit (range 10) 3629 | -10/Subcaves | Build established: Mutant 4793 | -10/Subcaves | Core integrity fell below 20% 5888 | -10/Subcaves | Disturbed a concealed Subdweller 5949 | -10/Subcaves | Learned 4 Materials zone layouts 6132 | -10/Subcaves | Destroyed by ZV-HCQ(R) with Subdweller Beam Cannon Last Messages --------------- 06025_ Acquired 19 matter. 06029_ Searching scrap... 06029_ Found Mak. Sword. 06029_ Found 42 Matter. 06039_ Acquired Mak. Sword. 06040_ Subatomizers dissect the Hvy. Battle Rifle. 06045_ Acquired Hvy. Battle Rifle. 06064_ Subatomizers dissect the Sub. Power Source. 06097_ ZV-HCQ(R) affixes Scrap Shield Fragment to Scrap Shield. 06102_ Subatomizers dissect the Sub. Power Source. 06103_ Med. Armor Plating destroyed. 06104_ Dropped Med. Storage Unit. 06107_ Carbon-fiber Leg destroyed. 06120_ Dropped Barrage Gun. 06121_ Acquired Mak. Sword. 06124_ Mak. Sword follow-up attack on ZV-HCQ(R). 06126_ ZV-HCQ(R) Sub. Power Source severed. 06128_ Scrap Shield destroyed. 06130_ Subatomizers dissect the Sub. Power Source. 06130_ Mak. Sword follow-up attack on ZV-HCQ(R). Map ----- +----------------------------------------------------+ | ?????????????????????????????????????????????????? | | ?????????????????????????????????????????????????? | | ?????????????????????????????????????????????????? | | ?????????????????????????????????????????????????? | | ?????????????????????????????????????????????????? | | ?????????????????????????????????????????????????? | | ?????????????????????????????????????????????????? | | ?????????????????????????????????????????????????? | | ?????????????????????????????????????????????????? | | ?????????????????????????????????????????????????? | | ?????????????????????????????????????????????????? | | ?????????????????????????????????????????????????? | | ?????????????????????????????????????????????????? | | ?????????????????????????????????????????????????? | | ?????????????????????????????????????????????????? | | ?????????????????????????????????????????????????? | | ?????????????????????????????????????????????????? | | ?????????????????????????????????????????????????? | | ??????????????????????#######????????????????????? | | ??????????????????????#< "#????????????????????? | | ??????????????????????# ##%%#????????????????????? | | ??????????????????????# ####????????????????????? | | ??????????????????????## "###????????????????????? | | ??????????????????????##*## ##???????????????????? | | ?????????######???????#